[Event "Holiday Invitational-IM 2019"]
[Site "Charlotte"]
[Date "2019.12.27"]
[Round "1.1"]
[White "Kolay, Alex"]
[Black "Myers, Dominique"]
[Result "1-0"]
[ECO "D90"]
[WhiteElo "2261"]
[BlackElo "2012"]
[Annotator "ChessBase"]
[PlyCount "87"]
[EventDate "2019.12.26"]
[EventType "tourn"]
[EventCountry "USA"]
[SourceTitle "playchess.com"]
[Source "ChessBase"]
[SourceQuality "1"]
[TimeControl "5400+30"]

1. d4 {[%emt 0:00:00]} Nf6 {[%emt 0:00:00]} 2. c4 {[%emt 0:00:00]} g6 {[%emt 0:00:00]} 3. Nc3 {[%emt 0:00:00]} d5 {[%emt 0:00:00]} 4. Nf3 {[%emt 0:00:00]} Bg7 {[%emt 0:00:10]} 5. h4 {[%emt 0:00:00]} c6 {[%emt 0:00:35]} 6. cxd5 {[%emt 0:00:40]} cxd5 {[%emt 0:00:09]} 7. Bf4 {[%emt 0:00:08]} O-O {[%emt 0:00:59]} 8. e3 {[%emt 0:00:27]} Nc6 {[%emt 0:01:09]} 9. Ne5 {[%emt 0:01:56]} Nxe5 {[%emt 0:00:36]} 10. Bxe5 {[%emt 0:00:08]} Ne4 {[%emt 0:00:29]} 11. Bxg7 {[%emt 0:07:55]} Nxc3 {[%emt 0:00:07]} 12. bxc3 {[%emt 0:00:07]} Kxg7 {[%emt 0:00:06]} 13. h5 {[%emt 0:00:20]} Qa5 {[%emt 0:02:28]} 14. Qd2 {[%emt 0:00:23]} Bf5 {[%emt 0:02:22]} 15. f3 {[%emt 0:02:38]} gxh5 {[%emt 0:04:29]} 16. Rxh5 {[%emt 0:09:15]} Bg6 {[%emt 0:00:18]} 17. Re5 {[%emt 0:00:07]} e6 {[%emt 0:02:22]} 18. c4 {[%emt 0:03:15]} Qxd2+ {[%emt 0:09:35]} 19. Kxd2 {[%emt 0:00:05]} Bf5 {[%emt 0:05:41]} 20. cxd5 {[%emt 0:05:46]} f6 {[%emt 0:00:36]} 21. Rxe6 {[%emt 0:00:46]} Bxe6 {[%emt 0:00:18]} 22. dxe6 {[%emt 0:00:05]} Rac8 {[%emt 0:00:34]} 23. Bb5 {[%emt 0:00:36]} Rc7 {[%emt 0:00:58]} 24. Bd7 {[%emt 0:00:05]} Rxd7 {[%emt 0:01:14]} 25. exd7 {[%emt 0:00:07]} Rd8 {[%emt 0:00:11]} 26. Rc1 {[%emt 0:00:21]} Rxd7 {[%emt 0:00:07]} 27. Kd3 {[%emt 0:01:43]} Kf7 {[%emt 0:00:52]} 28. Rc5 {[%emt 0:00:44]} b6 {[%emt 0:02:12]} 29. Rc6 {[%emt 0:01:03]} Rb7 {[%emt 0:06:18]} 30. a4 {[%emt 0:03:32]} a6 {[%emt 0:02:10]} 31. e4 {[%emt 0:01:12]} h5 {[%emt 0:02:04]} 32. d5 {[%emt 0:01:24]} h4 {[%emt 0:01:22]} 33. f4 {[%emt 0:01:05]} b5 {[%emt 0:01:34]} 34. a5 {[%emt 0:00:48]} Ra7 {[%emt 0:02:41]} 35. e5 {[%emt 0:00:28]} fxe5 {[%emt 0:00:14]} 36. fxe5 {[%emt 0:00:07]} Ke8 {[%emt 0:01:58]} 37. e6 {[%emt 0:00:40]} Ke7 {[%emt 0:01:16]} 38. Kd4 {[%emt 0:00:59]} Kf6 {[%emt 0:00:17]} 39. Rc2 {[%emt 0:03:13]} Rg7 {[%emt 0:02:58]} 40. Rf2+ {[%emt 0:00:04]} Ke7 {[%emt 0:00:11]} 41. Ke5 {[%emt 0:00:36]} Rg5+ {[%emt 0:02:41]} 42. Rf5 {[%emt 0:00:04]} Rxg2 {[%emt 0:18:06]} 43. d6+ {[%emt 0:00:05]} Ke8 {[%emt 0:00:07]} 44. d7+ {[%emt 0:00:02]} 1-0

[Event "Holiday Invitational-IM 2019"]
[Site "Charlotte"]
[Date "2019.12.27"]
[Round "1.2"]
[White "Bregadze, Levan"]
[Black "Cervantes Landeiro, Thalia"]
[Result "1-0"]
[ECO "D27"]
[WhiteElo "2458"]
[BlackElo "2289"]
[Annotator "ChessBase"]
[PlyCount "113"]
[EventDate "2019.12.26"]
[EventType "tourn"]
[EventCountry "USA"]
[SourceTitle "playchess.com"]
[Source "ChessBase"]
[SourceQuality "1"]
[TimeControl "5400+30"]

1. Nf3 {[%emt 0:00:00]} d5 {[%emt 0:00:00]} 2. c4 {[%emt 0:00:00]} dxc4 {[%emt 0:00:00]} 3. e3 {[%emt 0:00:53]} Nf6 {[%emt 0:00:10]} 4. Bxc4 {[%emt 0:00:07]} e6 {[%emt 0:00:09]} 5. d4 {[%emt 0:00:31]} c5 {[%emt 0:00:39]} 6. O-O {[%emt 0:00:14]} a6 {[%emt 0:00:16]} 7. dxc5 {[%emt 0:05:15]} Bxc5 {[%emt 0:00:11]} 8. Qc2 {[%emt 0:04:12]} Nbd7 {[%emt 0:06:27]} 9. Bd3 {[%emt 0:15:09]} O-O {[%emt 0:06:13]} 10. Nc3 {[%emt 0:03:43]} Qe7 {[%emt 0:15:36]} 11. e4 {[%emt 0:03:19]} h6 {[%emt 0:09:25]} 12. e5 {[%emt 0:02:50]} Ng4 {[%emt 0:07:30]} 13. Bf4 {[%emt 0:04:15]} f5 {[%emt 0:09:39]} 14. exf6 {[%emt 0:01:53]} Ndxf6 {[%emt 0:10:57]} 15. Rae1 {[%emt 0:10:54]} Bd7 {[%emt 0:06:03]} 16. h3 {[%emt 0:01:22]} Nxf2 {[%emt 0:12:56]} 17. Rxf2 {[%emt 0:00:05]} Bxf2+ {[%emt 0:01:37]} 18. Qxf2 {[%emt 0:00:06]} Nh5 {[%emt 0:00:43]} 19. Be3 {[%emt 0:02:40]} Rac8 {[%emt 0:01:48]} 20. Qh4 {[%emt 0:01:30]} Qxh4 {[%emt 0:02:36]} 21. Nxh4 {[%emt 0:00:03]} Nf4 {[%emt 0:02:06]} 22. Be4 {[%emt 0:01:03]} Rc7 {[%emt 0:02:43]} 23. Bxf4 {[%emt 0:02:21]} Rxf4 {[%emt 0:00:05]} 24. Ng6 {[%emt 0:00:04]} Rf6 {[%emt 0:01:31]} 25. Rd1 {[%emt 0:00:07]} b5 {[%emt 0:01:43]} 26. Ne5 {[%emt 0:00:06]} Be8 {[%emt 0:00:31]} 27. a3 {[%emt 0:00:32]} a5 {[%emt 0:01:01]} 28. Rd8 {[%emt 0:00:09]} Rf8 {[%emt 0:00:06]} 29. Rb8 {[%emt 0:00:39]} Rc5 {[%emt 0:00:49]} 30. Nd3 {[%emt 0:00:19]} Rc4 {[%emt 0:00:11]} 31. Bf3 {[%emt 0:00:11]} Rd4 {[%emt 0:01:16]} 32. Nc5 {[%emt 0:00:06]} Bd7 {[%emt 0:00:32]} 33. Rxf8+ {[%emt 0:00:23]} Kxf8 {[%emt 0:00:02]} 34. Bc6 {[%emt 0:00:23]} Bc8 {[%emt 0:00:50]} 35. Bxb5 {[%emt 0:00:07]} Rd2 {[%emt 0:00:16]} 36. b4 {[%emt 0:01:32]} axb4 {[%emt 0:00:32]} 37. axb4 {[%emt 0:00:03]} Rb2 {[%emt 0:00:07]} 38. Nd3 {[%emt 0:00:27]} Rb3 {[%emt 0:00:11]} 39. Ne4 {[%emt 0:00:23]} Bb7 {[%emt 0:01:31]} 40. Nec5 {[%emt 0:00:42]} Rb1+ {[%emt 0:00:06]} 41. Kf2 {[%emt 0:00:03]} Bd5 {[%emt 0:00:08]} 42. Ba4 {[%emt 0:01:20]} Bc4 {[%emt 0:01:11]} 43. Ke3 {[%emt 0:00:20]} Ke7 {[%emt 0:00:30]} 44. Bc6 {[%emt 0:00:53]} Kd6 {[%emt 0:00:29]} 45. Be4 {[%emt 0:00:07]} Ra1 {[%emt 0:00:32]} 46. Kd4 {[%emt 0:00:07]} Bb5 {[%emt 0:00:20]} 47. Bf3 {[%emt 0:00:58]} Rb1 {[%emt 0:00:44]} 48. Kc3 {[%emt 0:01:20]} Ra1 {[%emt 0:00:27]} 49. Ne4+ {[%emt 0:00:10]} Ke7 {[%emt 0:00:09]} 50. Ne5 {[%emt 0:00:21]} Rb1 {[%emt 0:00:40]} 51. h4 {[%emt 0:00:24]} Ra1 {[%emt 0:00:44]} 52. Kd4 {[%emt 0:00:11]} Rc1 {[%emt 0:00:05]} 53. Nc3 {[%emt 0:00:07]} Be8 {[%emt 0:00:36]} 54. b5 {[%emt 0:00:04]} Rc2 {[%emt 0:00:48]} 55. b6 {[%emt 0:00:15]} Rb2 {[%emt 0:00:08]} 56. b7 {[%emt 0:00:13]} Kd8 {[%emt 0:00:42]} 57. Bc6 {[%emt 0:00:12]} 1-0

[Event "Holiday Invitational-IM 2019"]
[Site "Charlotte"]
[Date "2019.12.27"]
[Round "1.3"]
[White "Ludwig, John"]
[Black "Furfine, Jacob"]
[Result "1/2-1/2"]
[ECO "B31"]
[WhiteElo "2360"]
[BlackElo "2302"]
[Annotator "ChessBase"]
[PlyCount "70"]
[EventDate "2019.12.26"]
[EventType "tourn"]
[EventCountry "USA"]
[SourceTitle "playchess.com"]
[Source "ChessBase"]
[SourceQuality "1"]
[TimeControl "5400+30"]

1. e4 {[%emt 0:00:00]} c5 {[%emt 0:00:00]} 2. Nf3 {[%emt 0:00:00]} Nc6 {[%emt 0:00:00]} 3. Bb5 {[%emt 0:00:00]} g6 {[%emt 0:00:25]} 4. Bxc6 {[%emt 0:00:15]} dxc6 {[%emt 0:00:21]} 5. d3 {[%emt 0:00:12]} Bg7 {[%emt 0:00:24]} 6. h3 {[%emt 0:00:15]} e5 {[%emt 0:00:41]} 7. Nc3 {[%emt 0:00:43]} Ne7 {[%emt 0:00:54]} 8. Be3 {[%emt 0:05:13]} b6 {[%emt 0:00:31]} 9. Qd2 {[%emt 0:00:07]} h6 {[%emt 0:00:37]} 10. Nh2 {[%emt 0:00:06]} Be6 {[%emt 0:02:29]} 11. O-O-O {[%emt 0:06:48]} Qc8 {[%emt 0:00:13]} 12. Rhf1 {[%emt 0:11:28]} Qa6 {[%emt 0:03:17]} 13. a3 {[%emt 0:00:08]} O-O-O {[%emt 0:01:34]} 14. Ne2 {[%emt 0:10:54]} f5 {[%emt 0:04:57]} 15. f3 {[%emt 0:06:04]} c4 {[%emt 0:03:08]} 16. Qc3 {[%emt 0:01:52]} c5 {[%emt 0:03:43]} 17. Kb1 {[%emt 0:01:34]} Nc6 {[%emt 0:01:27]} 18. Nc1 {[%emt 0:19:16]} Nd4 {[%emt 0:02:44]} 19. Qe1 {[%emt 0:02:23]} cxd3 {[%emt 0:19:07]} 20. cxd3 {[%emt 0:00:51]} Rd7 {[%emt 0:01:37]} 21. Bxd4 {[%emt 0:05:07]} Rxd4 {[%emt 0:02:04]} 22. Qg3 {[%emt 0:01:18]} g5 {[%emt 0:00:33]} 23. exf5 {[%emt 0:02:05]} Bxf5 {[%emt 0:01:28]} 24. Rfe1 {[%emt 0:00:18]} Rhd8 {[%emt 0:06:53]} 25. Ng4 {[%emt 0:02:58]} Bxd3+ {[%emt 0:02:42]} 26. Nxd3 {[%emt 0:01:25]} Rxd3 {[%emt 0:00:07]} 27. Nf2 {[%emt 0:01:24]} Rxd1+ {[%emt 0:03:38]} 28. Rxd1 {[%emt 0:00:57]} Rxd1+ {[%emt 0:02:22]} 29. Nxd1 {[%emt 0:00:07]} Qd3+ {[%emt 0:00:34]} 30. Kc1 {[%emt 0:00:07]} Qc4+ {[%emt 0:03:01]} 31. Kb1 {[%emt 0:01:40]} Qf4 {[%emt 0:11:02]} 32. Qe1 {[%emt 0:01:04]} Qd4 {[%emt 0:00:54]} 33. Qe2 {[%emt 0:02:36]} Kb7 {[%emt 0:01:32]} 34. Ne3 {[%emt 0:02:42]} Bf8 {[%emt 0:14:38]} 35. Ng4 {[%emt 0:01:40]} Bg7 {[%emt 0:03:45]} 1/2-1/2

[Event "Holiday Invitational-IM 2019"]
[Site "Charlotte"]
[Date "2019.12.27"]
[Round "1.4"]
[White "Gauri, Shankar"]
[Black "Andrianov, Nikolai"]
[Result "1/2-1/2"]
[ECO "D79"]
[WhiteElo "2341"]
[BlackElo "2417"]
[Annotator "ChessBase"]
[PlyCount "50"]
[EventDate "2019.12.26"]
[EventType "tourn"]
[EventCountry "USA"]
[SourceTitle "playchess.com"]
[Source "ChessBase"]
[SourceQuality "1"]
[TimeControl "5400+30"]

1. d4 {[%emt 0:00:00]} d5 {[%emt 0:00:27]} 2. c4 {[%emt 0:01:16]} c6 {[%emt 0:00:13]} 3. Nf3 {[%emt 0:02:40]} Nf6 {[%emt 0:00:40]} 4. g3 {[%emt 0:00:57]} g6 {[%emt 0:01:46]} 5. Bg2 {[%emt 0:06:03]} Bg7 {[%emt 0:00:14]} 6. O-O {[%emt 0:01:01]} O-O {[%emt 0:00:20]} 7. cxd5 {[%emt 0:03:07]} cxd5 {[%emt 0:00:08]} 8. Nc3 {[%emt 0:00:24]} Ne4 {[%emt 0:03:54]} 9. Ne5 {[%emt 0:02:50]} Nxc3 {[%emt 0:00:42]} 10. bxc3 {[%emt 0:00:03]} Nc6 {[%emt 0:00:07]} 11. Nxc6 {[%emt 0:09:44]} bxc6 {[%emt 0:00:44]} 12. Qa4 {[%emt 0:04:57]} Bd7 {[%emt 0:00:22]} 13. Qa3 {[%emt 0:07:46]} Re8 {[%emt 0:00:36]} 14. Bf4 {[%emt 0:06:59]} e5 {[%emt 0:04:39]} 15. dxe5 {[%emt 0:01:11]} Bxe5 {[%emt 0:00:20]} 16. Bxe5 {[%emt 0:01:57]} Rxe5 {[%emt 0:00:07]} 17. e3 {[%emt 0:06:30]} Bf5 {[%emt 0:00:42]} 18. Rfd1 {[%emt 0:09:10]} Qb6 {[%emt 0:02:40]} 19. Rac1 {[%emt 0:07:06]} Rd8 {[%emt 0:01:07]} 20. c4 {[%emt 0:10:44]} dxc4 {[%emt 0:05:21]} 21. Rxd8+ {[%emt 0:05:37]} Qxd8 {[%emt 0:00:13]} 22. Qxa7 {[%emt 0:01:41]} Ra5 {[%emt 0:01:55]} 23. Qd4 {[%emt 0:01:43]} Qxd4 {[%emt 0:03:47]} 24. exd4 {[%emt 0:00:04]} Rxa2 {[%emt 1:10:56]} 25. Bxc6 {[%emt 0:00:30]} Bd3 {[%emt 0:00:00]} 1/2-1/2

[Event "Holiday Invitational-IM 2019"]
[Site "Charlotte"]
[Date "2019.12.27"]
[Round "1.5"]
[White "Francisco, Richard"]
[Black "Diulger, Alexey"]
[Result "0-1"]
[ECO "A10"]
[WhiteElo "2281"]
[BlackElo "2291"]
[Annotator "ChessBase"]
[PlyCount "110"]
[EventDate "2019.12.26"]
[EventType "tourn"]
[EventCountry "USA"]
[SourceTitle "playchess.com"]
[Source "ChessBase"]
[SourceQuality "1"]
[TimeControl "5400+30"]

1. c4 {[%emt 0:00:00]} f5 {[%emt 0:00:00]} 2. g3 {[%emt 0:00:00]} Nf6 {[%emt 0:00:05]} 3. Bg2 {[%emt 0:00:00]} g6 {[%emt 0:00:18]} 4. Nc3 {[%emt 0:01:12]} Bg7 {[%emt 0:00:09]} 5. Nh3 {[%emt 0:01:41]} e5 {[%emt 0:01:42]} 6. d4 {[%emt 0:04:45]} exd4 {[%emt 0:00:16]} 7. Qxd4 {[%emt 0:00:12]} Nc6 {[%emt 0:01:44]} 8. Qe3+ {[%emt 0:01:52]} Qe7 {[%emt 0:01:29]} 9. Qxe7+ {[%emt 0:05:31]} Kxe7 {[%emt 0:02:07]} 10. O-O {[%emt 0:11:36]} d6 {[%emt 0:09:56]} 11. Nf4 {[%emt 0:08:33]} Nb4 {[%emt 0:18:25]} 12. a3 {[%emt 0:07:21]} Na6 {[%emt 0:00:12]} 13. Rb1 {[%emt 0:06:14]} c6 {[%emt 0:02:12]} 14. b4 {[%emt 0:01:29]} Bd7 {[%emt 0:00:56]} 15. Bb2 {[%emt 0:02:55]} Rad8 {[%emt 0:16:33]} 16. Rfd1 {[%emt 0:06:59]} Rhe8 {[%emt 0:02:45]} 17. Rd2 {[%emt 0:02:55]} g5 {[%emt 0:05:10]} 18. Nd3 {[%emt 0:00:43]} Be6 {[%emt 0:02:03]} 19. b5 {[%emt 0:01:52]} Nb8 {[%emt 0:00:22]} 20. bxc6 {[%emt 0:01:57]} bxc6 {[%emt 0:02:02]} 21. Nb4 {[%emt 0:01:08]} Rc8 {[%emt 0:01:00]} 22. e4 {[%emt 0:09:26]} Bxc4 {[%emt 0:04:54]} 23. exf5 {[%emt 0:00:42]} d5 {[%emt 0:00:19]} 24. Nc2 {[%emt 0:02:34]} Kf7 {[%emt 0:01:46]} 25. Nd4 {[%emt 0:01:25]} g4 {[%emt 0:01:01]} 26. Ne6 {[%emt 0:01:08]} Bh6 {[%emt 0:00:02]} 27. Rd4 {[%emt 0:01:48]} Nbd7 {[%emt 0:01:07]} 28. Bc1 {[%emt 0:01:43]} Bxc1 {[%emt 0:00:23]} 29. Rxc1 {[%emt 0:00:04]} Nf8 {[%emt 0:01:02]} 30. Nf4 {[%emt 0:01:35]} Re5 {[%emt 0:00:29]} 31. h3 {[%emt 0:02:10]} h5 {[%emt 0:00:01]} 32. Nxh5 {[%emt 0:02:04]} Nxh5 {[%emt 0:00:05]} 33. hxg4 {[%emt 0:00:05]} Ng7 {[%emt 0:00:43]} 34. f4 {[%emt 0:02:43]} Re3 {[%emt 0:00:46]} 35. Kf2 {[%emt 0:00:37]} Rce8 {[%emt 0:00:20]} 36. Rxc4 {[%emt 0:03:27]} dxc4 {[%emt 0:00:18]} 37. Bxc6 {[%emt 0:00:04]} Rd3 {[%emt 0:01:58]} 38. Ne4 {[%emt 0:03:01]} Rb8 {[%emt 0:01:07]} 39. Rc2 {[%emt 0:01:41]} Rb6 {[%emt 0:02:57]} 40. Ba4 {[%emt 0:00:47]} Rxa3 {[%emt 0:00:46]} 41. Rxc4 {[%emt 0:01:33]} Rb2+ {[%emt 0:00:04]} 42. Ke1 {[%emt 0:00:02]} Nd7 {[%emt 0:01:01]} 43. Bc2 {[%emt 0:00:40]} Ne8 {[%emt 0:01:44]} 44. Kd2 {[%emt 0:01:47]} Nef6 {[%emt 0:04:46]} 45. Kc1 {[%emt 0:00:05]} Rb6 {[%emt 0:03:41]} 46. Nxf6 {[%emt 0:00:35]} Nxf6 {[%emt 0:01:20]} 47. g5 {[%emt 0:00:31]} Nd5 {[%emt 0:01:06]} 48. g4 {[%emt 0:00:38]} Rc3 {[%emt 0:01:04]} 49. g6+ {[%emt 0:00:17]} Kf8 {[%emt 0:00:47]} 50. Rxc3 {[%emt 0:02:00]} Nxc3 {[%emt 0:00:01]} 51. Kd2 {[%emt 0:00:47]} Nd5 {[%emt 0:00:13]} 52. g5 {[%emt 0:00:29]} Nxf4 {[%emt 0:01:25]} 53. f6 {[%emt 0:00:16]} Ne6 {[%emt 0:01:41]} 54. g7+ {[%emt 0:00:48]} Kg8 {[%emt 0:00:36]} 55. g6 {[%emt 0:00:32]} Ng5 {[%emt 0:00:20]} 0-1

[Event "Holiday Invitational-IM 2019"]
[Site "Charlotte"]
[Date "2019.12.27"]
[Round "2.1"]
[White "Kolay, Alex"]
[Black "Bregadze, Levan"]
[Result "1/2-1/2"]
[ECO "E90"]
[WhiteElo "2261"]
[BlackElo "2458"]
[Annotator "ChessBase"]
[PlyCount "76"]
[EventDate "2019.12.26"]
[EventType "tourn"]
[EventCountry "USA"]
[SourceTitle "playchess.com"]
[Source "ChessBase"]
[SourceQuality "1"]
[TimeControl "5400+30"]

1. d4 {[%emt 1:30:30]} Nf6 {[%emt 0:01:54]} 2. c4 {[%emt 0:00:00]} g6 {[%emt 0:00:18]} 3. Nc3 {[%emt 0:00:00]} Bg7 {[%emt 0:00:15]} 4. e4 {[%emt 0:00:00]} d6 {[%emt 0:00:06]} 5. Nf3 {[%emt 0:00:00]} O-O {[%emt 0:00:45]} 6. h3 {[%emt 0:00:00]} e5 {[%emt 0:00:27]} 7. d5 {[%emt 0:00:00]} a5 {[%emt 0:00:18]} 8. Be3 {[%emt 0:00:00]} Na6 {[%emt 0:00:08]} 9. g4 {[%emt 0:00:00]} Nd7 {[%emt 0:00:06]} 10. a3 {[%emt 0:00:00]} Nac5 {[%emt 0:00:38]} 11. Rg1 {[%emt 0:00:00]} a4 {[%emt 0:00:16]} 12. Nd2 {[%emt 0:00:00]} c6 {[%emt 0:00:15]} 13. Qc2 {[%emt 0:00:00]} Nb6 {[%emt 0:00:20]} 14. O-O-O {[%emt 0:00:00]} Bd7 {[%emt 0:00:22]} 15. Be2 {[%emt 0:00:00]} cxd5 {[%emt 0:00:29]} 16. cxd5 {[%emt 0:00:00]} Rc8 {[%emt 0:00:32]} 17. Kb1 {[%emt 0:00:00]} Kh8 {[%emt 0:00:12]} 18. h4 {[%emt 0:00:00]} f5 {[%emt 0:03:40]} 19. h5 {[%emt 0:00:00]} f4 {[%emt 0:01:58]} 20. Bxc5 {[%emt 0:00:00]} Rxc5 {[%emt 0:00:06]} 21. hxg6 {[%emt 0:00:00]} hxg6 {[%emt 0:00:13]} 22. Qd3 {[%emt 0:00:00]} Kg8 {[%emt 0:00:22]} 23. g5 {[%emt 0:00:00]} Qc8 {[%emt 0:01:36]} 24. Qf3 {[%emt 0:00:00]} Kf7 {[%emt 0:02:12]} 25. Rh1 {[%emt 0:00:00]} Rh8 {[%emt 0:04:26]} 26. Rc1 {[%emt 0:00:00]} Rxh1 {[%emt 0:06:26]} 27. Qxh1 {[%emt 0:00:00]} Qd8 {[%emt 0:00:59]} 28. Qg2 {[%emt 0:00:00]} Rc8 {[%emt 0:02:46]} 29. Rh1 {[%emt 0:00:00]} Qc7 {[%emt 0:05:13]} 30. Bg4 {[%emt 0:00:00]} Qd8 {[%emt 0:06:26]} 31. Be2 {[%emt 0:00:00]} Rc5 {[%emt 0:02:53]} 32. Rc1 {[%emt 0:03:31]} Bf8 {[%emt 0:00:19]} 33. Rh1 {[%emt 0:02:55]} Bg7 {[%emt 0:01:32]} 34. Rc1 {[%emt 0:00:11]} Qc8 {[%emt 0:00:08]} 35. Qh1 {[%emt 0:01:05]} Qe8 {[%emt 0:01:02]} 36. Qg2 {[%emt 0:01:31]} Qe7 {[%emt 0:02:24]} 37. Rh1 {[%emt 0:00:48]} Rc8 {[%emt 0:00:17]} 38. Rh2 {[%emt 0:01:16]} Rc5 {[%emt 0:00:54]} 1/2-1/2

[Event "Holiday Invitational-IM 2019"]
[Site "Charlotte"]
[Date "2019.12.27"]
[Round "2.2"]
[White "Andrianov, Nikolai"]
[Black "Francisco, Richard"]
[Result "1/2-1/2"]
[ECO "A30"]
[WhiteElo "2417"]
[BlackElo "2281"]
[Annotator "ChessBase"]
[PlyCount "126"]
[EventDate "2019.12.26"]
[EventType "tourn"]
[EventCountry "USA"]
[SourceTitle "playchess.com"]
[Source "ChessBase"]
[SourceQuality "1"]
[TimeControl "5400+30"]

1. Nf3 {[%emt 0:00:00]} Nf6 {[%emt 0:00:00]} 2. b3 {[%emt 0:00:30]} g6 {[%emt 0:00:06]} 3. Bb2 {[%emt 0:00:04]} Bg7 {[%emt 0:00:05]} 4. g3 {[%emt 0:00:09]} c5 {[%emt 1:31:49]} 5. c4 {[%emt 0:00:18]} b6 {[%emt 0:00:00]} 6. Bg2 {[%emt 0:00:33]} Bb7 {[%emt 0:00:00]} 7. O-O {[%emt 0:00:20]} O-O {[%emt 0:00:00]} 8. Nc3 {[%emt 0:00:25]} Nc6 {[%emt 0:00:00]} 9. d4 {[%emt 0:00:30]} cxd4 {[%emt 0:00:00]} 10. Nxd4 {[%emt 0:00:24]} Rc8 {[%emt 0:00:00]} 11. Rc1 {[%emt 0:02:27]} d6 {[%emt 0:00:00]} 12. Nc2 {[%emt 0:07:36]} Qd7 {[%emt 0:04:00]} 13. e4 {[%emt 0:01:01]} Rfd8 {[%emt 0:00:00]} 14. Ne3 {[%emt 0:05:12]} e6 {[%emt 0:00:00]} 15. Qd2 {[%emt 0:01:57]} a6 {[%emt 0:00:00]} 16. Rfd1 {[%emt 0:04:22]} Ba8 {[%emt 0:00:00]} 17. Qe2 {[%emt 0:10:21]} Qa7 {[%emt 0:00:00]} 18. Rd2 {[%emt 0:01:31]} b5 {[%emt 0:00:00]} 19. Rcd1 {[%emt 0:02:00]} Ne8 {[%emt 0:00:00]} 20. cxb5 {[%emt 0:01:58]} Nd4 {[%emt 0:00:00]} 21. Qd3 {[%emt 0:01:03]} axb5 {[%emt 0:00:00]} 22. Nxb5 {[%emt 0:00:34]} Nxb5 {[%emt 0:00:00]} 23. Bxg7 {[%emt 0:00:24]} Kxg7 {[%emt 0:00:00]} 24. Qxb5 {[%emt 0:00:40]} Rc5 {[%emt 0:00:00]} 25. Qd3 {[%emt 0:02:44]} Bb7 {[%emt 0:00:00]} 26. a4 {[%emt 0:01:04]} Ba6 {[%emt 0:00:00]} 27. Qd4+ {[%emt 0:00:42]} e5 {[%emt 0:00:00]} 28. Qb2 {[%emt 0:00:57]} Rdc8 {[%emt 0:00:00]} 29. b4 {[%emt 0:00:42]} Rc3 {[%emt 0:00:00]} 30. Nd5 {[%emt 0:01:47]} R3c4 {[%emt 0:00:00]} 31. a5 {[%emt 0:01:31]} Rb8 {[%emt 0:01:20]} 32. Rc2 {[%emt 0:03:50]} Rxc2 {[%emt 0:04:27]} 33. Qxc2 {[%emt 0:00:16]} Rc8 {[%emt 0:00:20]} 34. Qb2 {[%emt 0:01:31]} Bb5 {[%emt 0:02:45]} 35. Bf3 {[%emt 0:05:54]} Qa6 {[%emt 0:01:02]} 36. h4 {[%emt 0:12:45]} h5 {[%emt 0:00:20]} 37. Nc3 {[%emt 0:01:50]} Bc4 {[%emt 0:00:05]} 38. Ra1 {[%emt 0:01:55]} Nc7 {[%emt 0:00:14]} 39. Qd2 {[%emt 0:01:08]} Ne6 {[%emt 0:00:37]} 40. Kg2 {[%emt 0:00:34]} Nd4 {[%emt 0:00:16]} 41. Bd1 {[%emt 0:00:36]} Bf1+ {[%emt 0:01:29]} 42. Kh2 {[%emt 0:00:13]} Qc6 {[%emt 0:01:09]} 43. Nd5 {[%emt 0:00:45]} Qd7 {[%emt 0:00:22]} 44. Ne3 {[%emt 0:00:25]} Qh3+ {[%emt 0:00:22]} 45. Kg1 {[%emt 0:00:01]} Rc2 {[%emt 0:00:53]} 46. Qxc2 {[%emt 0:01:09]} Nxc2 {[%emt 0:00:06]} 47. Bxc2 {[%emt 0:00:05]} Ba6 {[%emt 0:00:40]} 48. Bb3 {[%emt 0:02:11]} f5 {[%emt 0:00:14]} 49. Rc1 {[%emt 0:00:13]} f4 {[%emt 0:00:14]} 50. Rc7+ {[%emt 0:00:05]} Kh8 {[%emt 0:00:21]} 51. b5 {[%emt 0:01:51]} fxg3 {[%emt 0:01:02]} 52. fxg3 {[%emt 0:02:02]} Qxg3+ {[%emt 0:00:05]} 53. Ng2 {[%emt 0:00:01]} Bxb5 {[%emt 0:00:09]} 54. Rc8+ {[%emt 0:00:11]} Kg7 {[%emt 0:00:05]} 55. Rc7+ {[%emt 0:00:04]} Kf8 {[%emt 0:00:14]} 56. Bd5 {[%emt 0:00:41]} Be2 {[%emt 0:00:16]} 57. Rf7+ {[%emt 0:00:14]} Ke8 {[%emt 0:00:06]} 58. Rf2 {[%emt 0:00:07]} Ba6 {[%emt 0:02:00]} 59. Rf6 {[%emt 0:00:53]} Ke7 {[%emt 0:00:43]} 60. Rf7+ {[%emt 0:00:08]} Kd8 {[%emt 0:00:14]} 61. Rf8+ {[%emt 0:00:40]} Ke7 {[%emt 0:00:47]} 62. Rf7+ {[%emt 0:00:02]} Ke8 {[%emt 0:00:15]} 63. Rf6 {[%emt 0:00:05]} Ke7 {[%emt 0:01:21]} 1/2-1/2

[Event "Holiday Invitational-IM 2019"]
[Site "Charlotte"]
[Date "2019.12.27"]
[Round "2.4"]
[White "Cervantes Landeiro, Thalia"]
[Black "Ludwig, John"]
[Result "1/2-1/2"]
[ECO "D22"]
[WhiteElo "2289"]
[BlackElo "2360"]
[Annotator "ChessBase"]
[PlyCount "47"]
[EventDate "2019.12.26"]
[EventType "tourn"]
[EventCountry "USA"]
[SourceTitle "playchess.com"]
[Source "ChessBase"]
[SourceQuality "1"]
[TimeControl "5400+30"]

1. d4 {[%emt 0:00:00]} d5 {[%emt 0:08:51]} 2. c4 {[%emt 0:00:00]} dxc4 {[%emt 0:00:15]} 3. Nf3 {[%emt 0:00:00]} a6 {[%emt 0:00:07]} 4. e3 {[%emt 0:00:00]} Bg4 {[%emt 0:00:15]} 5. Bxc4 {[%emt 0:00:11]} e6 {[%emt 0:00:06]} 6. h3 {[%emt 0:00:15]} Bh5 {[%emt 0:00:11]} 7. Nbd2 {[%emt 0:01:54]} Nd7 {[%emt 0:06:42]} 8. O-O {[%emt 0:03:30]} Ngf6 {[%emt 0:04:51]} 9. Be2 {[%emt 0:01:29]} c5 {[%emt 0:06:23]} 10. dxc5 {[%emt 0:06:06]} Bxc5 {[%emt 0:05:36]} 11. b3 {[%emt 0:03:04]} O-O {[%emt 0:00:47]} 12. Bb2 {[%emt 0:00:28]} Qe7 {[%emt 0:02:37]} 13. Ne5 {[%emt 0:05:48]} Bxe2 {[%emt 0:03:49]} 14. Qxe2 {[%emt 0:00:11]} Nxe5 {[%emt 0:05:43]} 15. Bxe5 {[%emt 0:00:13]} Rfd8 {[%emt 0:00:23]} 16. Rac1 {[%emt 0:08:27]} Bd6 {[%emt 0:06:29]} 17. Bb2 {[%emt 0:24:29]} Rac8 {[%emt 0:09:18]} 18. Nc4 {[%emt 0:03:57]} Bc7 {[%emt 0:05:13]} 19. Ba3 {[%emt 0:11:23]} Qe8 {[%emt 0:00:55]} 20. Rfd1 {[%emt 0:01:16]} Rxd1+ {[%emt 0:02:38]} 21. Rxd1 {[%emt 0:00:51]} Rd8 {[%emt 0:05:45]} 22. Bb2 {[%emt 0:05:24]} Rxd1+ {[%emt 0:02:15]} 23. Qxd1 {[%emt 0:00:02]} Qd7 {[%emt 0:01:14]} 24. Qxd7 {[%emt 0:00:56]} 1/2-1/2